[Event "EYCC Open-U16 2019"]
[Site "Bratislava"]
[Date "2019.08.03"]
[Round "2.11"]
[White "Zetocha, Adrian"]
[Black "Stefansson, Vignir Vatnar"]
[Result "0-1"]
[ECO "A80"]
[WhiteElo "2193"]
[BlackElo "2293"]
[Annotator "NA"]
[PlyCount "82"]
[EventDate "2019.08.02"]
[EventType "swiss"]
[EventCountry "SVK"]
[SourceTitle "playchess.com"]
[Source "ChessBase"]
[SourceQuality "1"]
[TimeControl "40/5400+30:1800+30"]

1. d4 {[%emt 0:00:00]} f5 {[%emt 0:00:00]} 2. Nf3 {[%emt 0:00:08]} Nf6 {[%emt 0:00:00]} 3. g3 {[%emt 0:00:20]} g6 {[%emt 0:00:00]} 4. Bg2 {[%emt 0:00:11]} Bg7 {[%emt 0:00:00]} 5. O-O {[%emt 0:00:12]} O-O {[%emt 0:00:02]} 6. b3 {[%emt 0:00:11]} d6 {[%emt 0:00:13]} 7. Bb2 {[%emt 0:00:09]} Na6 {[%emt 0:00:33]} 8. Nbd2 {[%emt 0:00:19]} c6 {[%emt 0:03:05]} 9. e3 {[%emt 0:00:14]} Qc7 {[%emt 0:04:18]} 10. Qe2 {[%emt 0:05:27]} Ne4 {[%emt 0:06:34]} 11. Ne1 {[%emt 0:19:57]} Nxd2 {[%emt 0:01:26]} 12. Qxd2 {[%emt 0:00:09]} e5 {[%emt 0:01:22]} 13. f4 {[%emt 0:01:00]} e4 {[%emt 0:09:04]} 14. c4 {[%emt 0:01:34]} Be6 {[%emt 0:02:15]} 15. Nc2 {[%emt 0:03:12]} b5 {[%emt 0:04:37]} 16. cxb5 {[%emt 0:10:38]} cxb5 {[%emt 0:01:04]} 17. Rfc1 {[%emt 0:04:15]} Qb6 {[%emt 0:02:53]} 18. Bc3 {[%emt 0:02:20]} Rfc8 {[%emt 0:06:51]} 19. Bf1 {[%emt 0:04:07]} Qb7 {[%emt 0:11:48]} 20. Ba5 {[%emt 0:05:05]} Rab8 {[%emt 0:03:29]} 21. Nb4 {[%emt 0:06:09]} Bd7 {[%emt 0:07:47]} 22. Nxa6 {[%emt 0:03:03]} Qxa6 {[%emt 0:00:02]} 23. a4 {[%emt 0:00:41]} Qb7 {[%emt 0:02:18]} 24. axb5 {[%emt 0:07:27]} Bxb5 {[%emt 0:00:13]} 25. Bxb5 {[%emt 0:08:42]} Qxb5 {[%emt 0:00:25]} 26. Bc7 {[%emt 0:00:13]} Ra8 {[%emt 0:03:04]} 27. Bxd6 {[%emt 0:05:20]} Qxb3 {[%emt 0:00:20]} 28. Bc5 {[%emt 0:06:29]} a6 {[%emt 0:07:09]} 29. Ra3 {[%emt 0:00:17]} Qb5 {[%emt 0:00:47]} 30. Ra5 {[%emt 0:00:23]} Qb3 {[%emt 0:00:15]} 31. Rca1 {[%emt 0:00:26]} Rc6 {[%emt 0:00:22]} 32. h3 {[%emt 0:03:42]} h6 {[%emt 0:02:10]} 33. Kf2 {[%emt 0:00:15]} Kh7 {[%emt 0:00:38]} 34. Qe2 {[%emt 0:01:01]} Rb8 {[%emt 0:02:21]} 35. R1a2 {[%emt 0:01:26]} Qc3 {[%emt 0:02:25]} 36. Rxa6 {[%emt 0:01:25]} Rxa6 {[%emt 0:00:16]} 37. Rxa6 {[%emt 0:01:26]} Rb2 {[%emt 0:00:18]} 38. Ra2 {[%emt 0:00:06]} Rxe2+ {[%emt 0:00:05]} 39. Rxe2 {[%emt 0:00:09]} Qc1 {[%emt 0:00:25]} 40. Re1 {[%emt 0:01:15]} Qd2+ {[%emt 0:00:00]} 41. Re2 {[%emt 0:00:00]} Qd1 {[%emt 0:00:09]} 0-1

[Event "EYCC Open-U16 2019"]
[Site "Bratislava"]
[Date "2019.08.03"]
[Round "2.12"]
[White "Niedbala, Bartlomiej"]
[Black "Sargsyan, Tigran R."]
[Result "0-1"]
[ECO "D20"]
[WhiteElo "2152"]
[BlackElo "2314"]
[Annotator "ChessBase"]
[PlyCount "168"]
[EventDate "2019.08.02"]
[EventType "swiss"]
[EventCountry "SVK"]
[SourceTitle "playchess.com"]
[Source "ChessBase"]
[SourceQuality "1"]
[TimeControl "40/5400+30:1800+30"]

1. d4 {[%emt 0:00:00]} d5 {[%emt 0:00:00]} 2. c4 {[%emt 0:00:00]} dxc4 {[%emt 0:00:52]} 3. e3 {[%emt 0:00:47]} e5 {[%emt 0:02:02]} 4. Bxc4 {[%emt 0:00:34]} exd4 {[%emt 0:00:48]} 5. exd4 {[%emt 0:00:03]} Nf6 {[%emt 0:01:47]} 6. Nf3 {[%emt 0:01:05]} Bd6 {[%emt 0:03:05]} 7. O-O {[%emt 0:00:11]} O-O {[%emt 0:00:19]} 8. Nc3 {[%emt 0:07:05]} Nc6 {[%emt 0:08:18]} 9. a3 {[%emt 0:03:31]} Bg4 {[%emt 0:01:51]} 10. h3 {[%emt 0:11:27]} Bh5 {[%emt 0:04:52]} 11. Be3 {[%emt 0:13:37]} Qd7 {[%emt 0:05:52]} 12. Rc1 {[%emt 0:11:06]} a6 {[%emt 0:15:00]} 13. Ba2 {[%emt 0:07:01]} Rfe8 {[%emt 0:04:45]} 14. Re1 {[%emt 0:11:18]} Rad8 {[%emt 0:07:57]} 15. d5 {[%emt 0:08:59]} Ne5 {[%emt 0:03:26]} 16. Nxe5 {[%emt 0:01:11]} Bxe5 {[%emt 0:01:13]} 17. Qd2 {[%emt 0:02:16]} Bg6 {[%emt 0:25:55]} 18. Bf4 {[%emt 0:01:16]} Bd6 {[%emt 0:01:50]} 19. Bxd6 {[%emt 0:09:00]} Qxd6 {[%emt 0:01:00]} 20. Rxe8+ {[%emt 0:00:56]} Rxe8 {[%emt 0:00:49]} 21. Re1 {[%emt 0:00:01]} Re5 {[%emt 0:01:44]} 22. Re3 {[%emt 0:03:28]} Qe7 {[%emt 0:00:25]} 23. Rxe5 {[%emt 0:02:12]} Qxe5 {[%emt 0:00:01]} 24. Bb3 {[%emt 0:01:01]} h5 {[%emt 0:02:51]} 25. Bd1 {[%emt 0:01:19]} h4 {[%emt 0:00:51]} 26. Bf3 {[%emt 0:00:12]} Bh5 {[%emt 0:03:16]} 27. Bxh5 {[%emt 0:03:14]} Nxh5 {[%emt 0:00:23]} 28. Nd1 {[%emt 0:00:30]} Nf4 {[%emt 0:00:30]} 29. Ne3 {[%emt 0:00:00]} Qg5 {[%emt 0:01:00]} 30. Qc2 {[%emt 0:01:02]} Nxh3+ {[%emt 0:01:31]} 31. Kh2 {[%emt 0:00:16]} Nf4 {[%emt 0:00:23]} 32. Qxc7 {[%emt 0:00:05]} Nxd5 {[%emt 0:00:36]} 33. Qc8+ {[%emt 0:01:04]} Kh7 {[%emt 0:00:02]} 34. Qc2+ {[%emt 0:00:40]} g6 {[%emt 0:00:07]} 35. Nxd5 {[%emt 0:00:29]} Qxd5 {[%emt 0:00:01]} 36. Qc7 {[%emt 0:00:28]} g5 {[%emt 0:00:49]} 37. Qc2+ {[%emt 0:00:27]} Kg7 {[%emt 0:00:19]} 38. Qc3+ {[%emt 0:00:18]} f6 {[%emt 0:00:40]} 39. Qc2 {[%emt 0:00:45]} Qe5+ {[%emt 0:00:46]} 40. Kg1 {[%emt 0:00:00]} Qe1+ {[%emt 0:00:00]} 41. Kh2 {[%emt 0:00:13]} Qe5+ {[%emt 0:01:37]} 42. g3 {[%emt 0:04:26]} hxg3+ {[%emt 0:02:47]} 43. fxg3 {[%emt 0:00:03]} f5 {[%emt 0:04:47]} 44. Qg2 {[%emt 0:03:12]} Qe4 {[%emt 0:01:37]} 45. Qd2 {[%emt 0:01:22]} Kg6 {[%emt 0:02:38]} 46. Qd6+ {[%emt 0:01:33]} Kh5 {[%emt 0:00:16]} 47. Qd1+ {[%emt 0:00:24]} Qg4 {[%emt 0:00:59]} 48. Qe1 {[%emt 0:00:54]} Qe4 {[%emt 0:05:25]} 49. Qd1+ {[%emt 0:01:04]} g4 {[%emt 0:05:25]} 50. Qd2 {[%emt 0:01:25]} Qf3 {[%emt 0:01:04]} 51. Qe1 {[%emt 0:00:28]} Qc6 {[%emt 0:01:45]} 52. Qe5 {[%emt 0:02:44]} Kg6 {[%emt 0:00:56]} 53. Kg1 {[%emt 0:03:35]} b6 {[%emt 0:02:18]} 54. Qe2 {[%emt 0:01:40]} a5 {[%emt 0:01:12]} 55. Kh2 {[%emt 0:00:46]} Kf6 {[%emt 0:00:58]} 56. Qd2 {[%emt 0:00:33]} Kf7 {[%emt 0:02:50]} 57. Kg1 {[%emt 0:01:52]} Qe6 {[%emt 0:00:44]} 58. Qc3 {[%emt 0:00:35]} Ke8 {[%emt 0:00:45]} 59. Qd2 {[%emt 0:01:06]} Qe5 {[%emt 0:00:50]} 60. Kh2 {[%emt 0:00:25]} Ke7 {[%emt 0:00:22]} 61. Qf2 {[%emt 0:01:01]} Qe6 {[%emt 0:00:26]} 62. Qd2 {[%emt 0:01:57]} Qd6 {[%emt 0:00:10]} 63. Qg5+ {[%emt 0:00:58]} Qf6 {[%emt 0:00:07]} 64. Qe3+ {[%emt 0:00:05]} Kd7 {[%emt 0:00:07]} 65. Qd3+ {[%emt 0:00:38]} Kc7 {[%emt 0:00:16]} 66. Qc2+ {[%emt 0:00:31]} Kb7 {[%emt 0:00:10]} 67. Qg2+ {[%emt 0:00:30]} Qc6 {[%emt 0:00:51]} 68. Qd2 {[%emt 0:00:51]} Qe4 {[%emt 0:01:19]} 69. b3 {[%emt 0:02:57]} Kc6 {[%emt 0:01:12]} 70. Qh6+ {[%emt 0:01:12]} Kb5 {[%emt 0:02:11]} 71. Qd2 {[%emt 0:01:13]} Kc6 {[%emt 0:00:24]} 72. Qh6+ {[%emt 0:01:35]} Kc5 {[%emt 0:00:14]} 73. Qf8+ {[%emt 0:01:47]} Kd4 {[%emt 0:00:40]} 74. Qd6+ {[%emt 0:00:59]} Ke3 {[%emt 0:00:02]} 75. Qxb6+ {[%emt 0:02:55]} Kf3 {[%emt 0:00:01]} 76. Qg1 {[%emt 0:00:01]} Qc2+ {[%emt 0:01:38]} 77. Kh1 {[%emt 0:00:05]} f4 {[%emt 0:00:42]} 78. Qf1+ {[%emt 0:01:55]} Kxg3 {[%emt 0:00:02]} 79. Qg1+ {[%emt 0:00:31]} Kf3 {[%emt 0:00:30]} 80. Qf1+ {[%emt 0:00:06]} Ke3 {[%emt 0:00:54]} 81. Qe1+ {[%emt 0:00:52]} Qe2 {[%emt 0:00:30]} 82. Qc1+ {[%emt 0:00:24]} Kf3 {[%emt 0:00:12]} 83. Qc3+ {[%emt 0:00:28]} Kf2 {[%emt 0:00:11]} 84. Qd4+ {[%emt 0:00:25]} Kg3 {[%emt 0:00:05]} 0-1

[Event "EYCC Open-U16 2019"]
[Site "Bratislava"]
[Date "2019.08.03"]
[Round "2.13"]
[White "Barseghyan, Armen Ar."]
[Black "Pobor, Milo"]
[Result "1-0"]
[ECO "A56"]
[WhiteElo "2313"]
[BlackElo "2067"]
[Annotator "NA"]
[PlyCount "87"]
[EventDate "2019.08.02"]
[EventType "swiss"]
[EventCountry "SVK"]
[SourceTitle "playchess.com"]
[Source "ChessBase"]
[SourceQuality "1"]
[TimeControl "40/5400+30:1800+30"]

1. d4 {[%emt 0:01:38]} Nf6 {[%emt 0:00:00]} 2. c4 {[%emt 0:00:06]} c5 {[%emt 0:00:00]} 3. d5 {[%emt 0:00:04]} g6 {[%emt 0:00:00]} 4. Nc3 {[%emt 0:01:07]} Bg7 {[%emt 0:00:00]} 5. e4 {[%emt 0:00:07]} d6 {[%emt 0:00:02]} 6. h3 {[%emt 0:00:09]} O-O {[%emt 0:00:14]} 7. Nf3 {[%emt 0:00:03]} e6 {[%emt 0:00:10]} 8. Be3 {[%emt 0:00:52]} exd5 {[%emt 0:00:30]} 9. exd5 {[%emt 0:00:16]} Re8 {[%emt 0:00:05]} 10. Bd3 {[%emt 0:00:40]} a6 {[%emt 0:00:30]} 11. O-O {[%emt 0:06:07]} Nbd7 {[%emt 0:00:54]} 12. Qd2 {[%emt 0:00:30]} b5 {[%emt 0:01:01]} 13. cxb5 {[%emt 0:07:01]} Nb6 {[%emt 0:01:18]} 14. Bg5 {[%emt 0:00:30]} c4 {[%emt 0:01:42]} 15. Bc2 {[%emt 0:01:53]} axb5 16. Nxb5 {[%emt 0:10:26]} Qd7 {[%emt 0:14:12]} 17. Nc3 {[%emt 0:02:34]} Bb7 {[%emt 0:01:51]} 18. Bxf6 {[%emt 0:00:30]} Bxf6 {[%emt 0:00:30]} 19. Rfe1 {[%emt 0:03:45]} Bxc3 20. Qxc3 {[%emt 0:00:30]} Bxd5 {[%emt 0:10:26]} 21. Rxe8+ {[%emt 0:03:34]} Rxe8 {[%emt 0:15:35]} 22. a4 {[%emt 0:02:16]} Ra8 {[%emt 0:02:22]} 23. a5 {[%emt 0:00:56]} Bxf3 {[%emt 0:01:07]} 24. Qxf3 {[%emt 0:00:30]} Qb5 {[%emt 0:10:36]} 25. Qa3 {[%emt 0:10:31]} d5 26. Bd1 {[%emt 0:03:57]} Ra7 {[%emt 0:09:59]} 27. Bf3 {[%emt 0:08:49]} Nd7 {[%emt 0:20:35]} 28. Qc3 {[%emt 0:05:24]} Qc5 {[%emt 0:04:16]} 29. a6 {[%emt 0:05:31]} d4 {[%emt 0:04:38]} 30. Qd2 {[%emt 0:00:34]} c3 {[%emt 0:00:07]} 31. bxc3 {[%emt 0:02:08]} Qxc3 {[%emt 0:02:17]} 32. Qd1 {[%emt 0:00:54]} Nc5 {[%emt 0:00:30]} 33. Rc1 {[%emt 0:01:11]} Qb4 {[%emt 0:00:28]} 34. Be2 {[%emt 0:01:09]} d3 {[%emt 0:00:33]} 35. Bxd3 {[%emt 0:03:23]} Rd7 {[%emt 0:00:31]} 36. Qe2 {[%emt 0:00:30]} Rxd3 {[%emt 0:00:30]} 37. Rxc5 {[%emt 0:00:37]} Qxc5 {[%emt 0:00:28]} 38. Qxd3 {[%emt 0:00:30]} Qc1+ {[%emt 0:00:27]} 39. Kh2 {[%emt 0:00:01]} Qc7+ {[%emt 0:00:15]} 40. g3 {[%emt 0:00:00]} Qb6 {[%emt 0:00:00]} 41. Kg1 {[%emt 0:01:30]} Qa5 {[%emt 0:02:34]} 42. Qc4 {[%emt 0:01:05]} Qa1+ {[%emt 0:01:56]} 43. Kg2 {[%emt 0:00:06]} Kg7 {[%emt 0:00:06]} 44. Qc6 {[%emt 0:00:19]} 1-0

[Event "EYCC Open-U16 2019"]
[Site "Bratislava"]
[Date "2019.08.03"]
[Round "2.14"]
[White "Melaa, Sondre"]
[Black "Fecker, Noah"]
[Result "0-1"]
[ECO "B48"]
[WhiteElo "2118"]
[BlackElo "2313"]
[Annotator "NA"]
[PlyCount "110"]
[EventDate "2019.08.02"]
[EventType "swiss"]
[EventCountry "SVK"]
[SourceTitle "playchess.com"]
[Source "ChessBase"]
[SourceQuality "1"]
[TimeControl "40/5400+30:1800+30"]

1. e4 {[%emt 0:00:00]} c5 {[%emt 0:00:00]} 2. Nf3 {[%emt 0:00:00]} e6 {[%emt 0:00:00]} 3. d4 {[%emt 0:00:00]} cxd4 {[%emt 0:00:00]} 4. Nxd4 {[%emt 0:00:11]} Nc6 {[%emt 0:00:00]} 5. Nc3 {[%emt 0:00:28]} Qc7 {[%emt 0:00:00]} 6. Be3 {[%emt 0:00:18]} a6 {[%emt 0:00:21]} 7. Qf3 {[%emt 0:00:27]} Ne5 {[%emt 0:02:33]} 8. Qg3 {[%emt 0:00:46]} h5 {[%emt 0:00:13]} 9. Bf4 {[%emt 0:07:23]} d6 {[%emt 0:02:18]} 10. Bg5 {[%emt 0:01:15]} Ng6 {[%emt 0:16:21]} 11. h4 {[%emt 0:06:39]} Nf6 {[%emt 0:05:44]} 12. O-O-O {[%emt 0:10:43]} Bd7 {[%emt 0:03:35]} 13. f4 {[%emt 0:08:09]} b5 {[%emt 0:10:42]} 14. a3 {[%emt 0:16:44]} Rc8 {[%emt 0:09:40]} 15. f5 {[%emt 0:07:58]} Ne5 {[%emt 0:03:08]} 16. fxe6 {[%emt 0:02:36]} fxe6 {[%emt 0:02:00]} 17. Bxf6 {[%emt 0:00:31]} gxf6 {[%emt 0:00:31]} 18. Be2 {[%emt 0:00:40]} Kf7 {[%emt 0:07:08]} 19. Rhf1 {[%emt 0:02:42]} Be7 {[%emt 0:07:31]} 20. Qg5 {[%emt 0:06:27]} Ng4 {[%emt 0:02:46]} 21. Bxg4 {[%emt 0:01:46]} hxg4 {[%emt 0:00:01]} 22. Qxg4 {[%emt 0:00:52]} Qc5 {[%emt 0:02:56]} 23. Nd5 {[%emt 0:07:01]} Rcg8 {[%emt 0:06:54]} 24. Qh3 {[%emt 0:00:51]} Rh6 {[%emt 0:02:44]} 25. Nf4 {[%emt 0:04:12]} Qc8 {[%emt 0:03:15]} 26. Nd3 {[%emt 0:01:59]} Rhg6 {[%emt 0:03:06]} 27. Qf3 {[%emt 0:06:12]} e5 {[%emt 0:05:08]} 28. Nf5 {[%emt 0:01:14]} Bxf5 {[%emt 0:00:42]} 29. exf5 {[%emt 0:00:55]} Rxg2 {[%emt 0:00:23]} 30. Qd5+ {[%emt 0:02:45]} Kf8 {[%emt 0:00:53]} 31. c3 {[%emt 0:01:53]} R8g3 {[%emt 0:01:06]} 32. Kb1 {[%emt 0:00:41]} Qc4 {[%emt 0:01:05]} 33. Nb4 {[%emt 0:01:22]} a5 {[%emt 0:02:39]} 34. Qxc4 {[%emt 0:00:36]} bxc4 {[%emt 0:00:01]} 35. Nc6 {[%emt 0:00:28]} a4 {[%emt 0:00:41]} 36. Na5 {[%emt 0:00:26]} Rg4 {[%emt 0:00:25]} 37. Nb7 {[%emt 0:00:44]} e4 {[%emt 0:01:18]} 38. Rfe1 {[%emt 0:00:19]} Rf2 {[%emt 0:00:38]} 39. Nxd6 {[%emt 0:00:14]} Bxd6 {[%emt 0:00:12]} 40. Rxd6 {[%emt 0:00:00]} Rxf5 {[%emt 0:00:00]} 41. Rd4 {[%emt 0:03:33]} Re5 {[%emt 0:05:51]} 42. Rxc4 {[%emt 0:06:20]} f5 {[%emt 0:03:03]} 43. Rxa4 {[%emt 0:02:46]} Rg2 {[%emt 0:04:17]} 44. Rd4 {[%emt 0:04:01]} Rf2 {[%emt 0:03:26]} 45. a4 {[%emt 0:04:31]} e3 {[%emt 0:01:36]} 46. b4 {[%emt 0:04:23]} f4 {[%emt 0:03:47]} 47. a5 {[%emt 0:00:51]} e2 {[%emt 0:05:51]} 48. Kc2 {[%emt 0:00:54]} Rf1 {[%emt 0:01:18]} 49. Kd2 {[%emt 0:02:51]} f3 {[%emt 0:00:16]} 50. a6 {[%emt 0:02:14]} Kg7 {[%emt 0:01:26]} 51. Rg4+ {[%emt 0:03:17]} Kh6 {[%emt 0:01:13]} 52. a7 {[%emt 0:01:09]} f2 {[%emt 0:00:13]} 53. Rxe2 {[%emt 0:00:10]} Rd1+ {[%emt 0:00:03]} 54. Kc2 {[%emt 0:00:54]} Rxe2+ {[%emt 0:00:10]} 55. Kb3 {[%emt 0:00:10]} Rb1+ {[%emt 0:00:21]} 0-1

[Event "EYCC Open-U16 2019"]
[Site "Bratislava"]
[Date "2019.08.03"]
[Round "2.15"]
[White "Mis, Mieszko"]
[Black "Gomez Carreno, Martin"]
[Result "1-0"]
[ECO "A57"]
[WhiteElo "2284"]
[BlackElo "2078"]
[Annotator "NA"]
[PlyCount "75"]
[EventDate "2019.08.02"]
[EventType "swiss"]
[EventCountry "SVK"]
[SourceTitle "playchess.com"]
[Source "ChessBase"]
[SourceQuality "1"]
[TimeControl "40/5400+30:1800+30"]

1. d4 {[%emt 0:00:00]} Nf6 {[%emt 0:00:00]} 2. c4 {[%emt 0:00:07]} c5 {[%emt 0:00:00]} 3. d5 {[%emt 0:01:25]} b5 {[%emt 0:00:36]} 4. cxb5 {[%emt 0:04:21]} a6 {[%emt 0:00:20]} 5. f3 {[%emt 0:00:55]} d6 {[%emt 0:25:10]} 6. e4 {[%emt 0:02:15]} Nbd7 {[%emt 0:00:09]} 7. Nc3 {[%emt 0:04:01]} g6 {[%emt 0:02:14]} 8. a4 {[%emt 0:09:58]} axb5 {[%emt 0:02:29]} 9. Bxb5 {[%emt 0:00:38]} Bg7 {[%emt 0:04:40]} 10. Nge2 {[%emt 0:04:02]} O-O {[%emt 0:03:19]} 11. O-O {[%emt 0:00:26]} Ba6 {[%emt 0:01:26]} 12. Be3 {[%emt 0:04:58]} Bxb5 {[%emt 0:03:17]} 13. Nxb5 {[%emt 0:02:54]} Ne8 {[%emt 0:10:35]} 14. Nec3 {[%emt 0:06:03]} Nc7 {[%emt 0:03:06]} 15. Qe2 {[%emt 0:11:56]} Nxb5 {[%emt 0:03:37]} 16. Nxb5 {[%emt 0:04:00]} Nb6 {[%emt 0:01:11]} 17. a5 {[%emt 0:05:03]} Nd7 {[%emt 0:00:22]} 18. Bd2 {[%emt 0:05:46]} Bxb2 {[%emt 0:05:37]} 19. Rab1 {[%emt 0:00:08]} Bg7 {[%emt 0:00:57]} 20. Na3 {[%emt 0:00:17]} Nb8 {[%emt 0:12:17]} 21. Nc4 {[%emt 0:05:57]} Na6 {[%emt 0:02:24]} 22. Nb6 {[%emt 0:00:13]} Ra7 {[%emt 0:00:14]} 23. Nc4 {[%emt 0:08:28]} Qc7 {[%emt 0:03:50]} 24. Rfc1 {[%emt 0:00:44]} Rfa8 {[%emt 0:03:58]} 25. Kh1 {[%emt 0:00:53]} Rb7 {[%emt 0:01:20]} 26. Nb6 {[%emt 0:01:44]} Raa7 {[%emt 0:00:08]} 27. Qb5 {[%emt 0:01:53]} Qd8 {[%emt 0:01:02]} 28. Qc6 {[%emt 0:01:33]} Rc7 {[%emt 0:02:50]} 29. Qa4 {[%emt 0:00:17]} Rcb7 {[%emt 0:03:58]} 30. Nc4 {[%emt 0:01:37]} Qb8 {[%emt 0:02:09]} 31. Rb6 {[%emt 0:01:21]} Nc7 {[%emt 0:01:35]} 32. Rcb1 {[%emt 0:04:10]} Rxb6 {[%emt 0:00:25]} 33. Rxb6 {[%emt 0:00:04]} Rb7 {[%emt 0:00:05]} 34. Qc6 {[%emt 0:00:46]} Rxb6 {[%emt 0:00:49]} 35. axb6 {[%emt 0:00:05]} Na6 {[%emt 0:00:35]} 36. b7 {[%emt 0:00:17]} Nc7 {[%emt 0:00:23]} 37. Ba5 {[%emt 0:00:11]} Qa7 {[%emt 0:00:46]} 38. Qxc7 {[%emt 0:00:14]} 1-0

[Event "EYCC Open-U16 2019"]
[Site "Bratislava"]
[Date "2019.08.03"]
[Round "2.16"]
[White "Alonso Garcia, Aaron"]
[Black "Stankovic, Milos M"]
[Result "0-1"]
[ECO "C42"]
[WhiteElo "2248"]
[BlackElo "2270"]
[Annotator "NA"]
[PlyCount "178"]
[EventDate "2019.08.02"]
[EventType "swiss"]
[EventCountry "SVK"]
[SourceTitle "playchess.com"]
[Source "ChessBase"]
[SourceQuality "1"]
[TimeControl "40/5400+30:1800+30"]

1. e4 {[%emt 0:00:14]} e5 {[%emt 0:00:00]} 2. Nf3 {[%emt 0:01:11]} Nf6 {[%emt 0:00:00]} 3. Nxe5 {[%emt 0:01:51]} d6 {[%emt 0:00:12]} 4. Nf3 {[%emt 0:01:52]} Nxe4 {[%emt 0:00:12]} 5. Nc3 {[%emt 0:00:29]} Nxc3 {[%emt 0:01:46]} 6. dxc3 {[%emt 0:00:57]} Be7 {[%emt 0:01:28]} 7. Bf4 {[%emt 0:05:03]} Nc6 {[%emt 0:02:08]} 8. Qd2 {[%emt 0:03:01]} Bf5 {[%emt 0:01:43]} 9. O-O-O {[%emt 0:03:51]} Qd7 {[%emt 0:01:41]} 10. Bb5 {[%emt 0:08:22]} a6 {[%emt 0:04:10]} 11. Bxc6 {[%emt 0:01:18]} bxc6 {[%emt 0:01:00]} 12. Rhe1 {[%emt 0:01:59]} O-O {[%emt 0:04:46]} 13. Ne5 {[%emt 0:07:52]} dxe5 {[%emt 0:08:12]} 14. Qxd7 {[%emt 0:00:06]} Bxd7 {[%emt 0:00:05]} 15. Rxd7 {[%emt 0:00:11]} Bd6 {[%emt 0:00:07]} 16. Be3 {[%emt 0:08:32]} Rfc8 {[%emt 0:04:45]} 17. Rd1 {[%emt 0:10:01]} Kf8 {[%emt 0:01:47]} 18. R1xd6 {[%emt 0:02:41]} cxd6 {[%emt 0:00:07]} 19. Rxd6 {[%emt 0:00:01]} Ke8 {[%emt 0:00:21]} 20. Bc5 {[%emt 0:02:10]} Rab8 {[%emt 0:02:13]} 21. c4 {[%emt 0:02:00]} Rb7 {[%emt 0:00:25]} 22. Rd3 {[%emt 0:00:30]} f6 {[%emt 0:00:34]} 23. b4 {[%emt 0:05:37]} Rd7 {[%emt 0:01:07]} 24. Ra3 {[%emt 0:00:58]} Ra8 {[%emt 0:00:11]} 25. Ra5 {[%emt 0:06:32]} Rdd8 {[%emt 0:01:11]} 26. Bb6 {[%emt 0:01:59]} Rdb8 {[%emt 0:00:23]} 27. c5 {[%emt 0:00:22]} Kd7 {[%emt 0:02:48]} 28. Ra3 {[%emt 0:00:13]} Rb7 {[%emt 0:00:34]} 29. c4 {[%emt 0:01:57]} Rbb8 {[%emt 0:08:16]} 30. Rh3 {[%emt 0:03:38]} h6 {[%emt 0:00:45]} 31. Rg3 {[%emt 0:00:16]} Rg8 {[%emt 0:00:40]} 32. Rd3+ {[%emt 0:00:10]} Ke7 {[%emt 0:00:11]} 33. a4 {[%emt 0:00:34]} Rgb8 {[%emt 0:01:41]} 34. Rg3 {[%emt 0:06:15]} Kf7 {[%emt 0:00:37]} 35. a5 {[%emt 0:07:11]} Rb7 {[%emt 0:00:29]} 36. Rd3 {[%emt 0:01:13]} Rc8 {[%emt 0:00:26]} 37. Kb2 {[%emt 0:01:46]} Ke7 {[%emt 0:01:24]} 38. Rg3 {[%emt 0:04:03]} Ke6 {[%emt 0:02:31]} 39. Kc3 {[%emt 0:00:40]} h5 {[%emt 0:02:00]} 40. b5 {[%emt 0:00:00]} cxb5 {[%emt 0:00:00]} 41. Rd3 {[%emt 0:06:01]} bxc4 {[%emt 0:00:44]} 42. Rd6+ {[%emt 0:05:52]} Ke7 {[%emt 0:00:14]} 43. Kxc4 {[%emt 0:00:25]} Rd7 {[%emt 0:00:13]} 44. Kd5 {[%emt 0:01:07]} h4 {[%emt 0:02:24]} 45. g3 {[%emt 0:02:29]} hxg3 {[%emt 0:00:37]} 46. hxg3 {[%emt 0:00:01]} g6 {[%emt 0:01:33]} 47. g4 {[%emt 0:01:38]} Rxd6+ {[%emt 0:04:24]} 48. cxd6+ {[%emt 0:00:01]} Kd7 {[%emt 0:00:09]} 49. Bc7 {[%emt 0:10:56]} Rh8 {[%emt 0:02:09]} 50. Bb6 {[%emt 0:03:11]} g5 {[%emt 0:02:39]} 51. Bc7 {[%emt 0:02:55]} Rh4 {[%emt 0:00:27]} 52. f3 {[%emt 0:00:04]} Rh2 {[%emt 0:00:53]} 53. Ke4 {[%emt 0:01:07]} Ke6 {[%emt 0:00:05]} 54. Bb8 {[%emt 0:00:59]} Ra2 {[%emt 0:00:44]} 55. Bc7 {[%emt 0:00:01]} Ra3 {[%emt 0:00:26]} 56. Bd8 {[%emt 0:00:26]} Rb3 {[%emt 0:01:58]} 57. Bc7 {[%emt 0:01:33]} Rb4+ {[%emt 0:00:19]} 58. Ke3 {[%emt 0:00:19]} Rf4 {[%emt 0:00:18]} 59. Bb8 {[%emt 0:00:46]} Rd4 {[%emt 0:19:08]} 60. Bc7 {[%emt 0:00:16]} Kd7 {[%emt 0:00:14]} 61. Ke2 {[%emt 0:01:05]} e4 {[%emt 0:01:50]} 62. Ke3 {[%emt 0:00:22]} exf3 {[%emt 0:00:46]} 63. Kxf3 {[%emt 0:00:01]} Ra4 {[%emt 0:02:02]} 64. Kg3 {[%emt 0:00:22]} Ra3+ {[%emt 0:00:19]} 65. Kg2 {[%emt 0:00:02]} Rd3 {[%emt 0:01:01]} 66. Kf2 {[%emt 0:00:26]} Rxd6 {[%emt 0:02:52]} 67. Bxd6 {[%emt 0:00:08]} Kxd6 {[%emt 0:00:02]} 68. Ke2 {[%emt 0:00:01]} Kc5 {[%emt 0:01:19]} 69. Ke3 {[%emt 0:00:01]} Kb5 {[%emt 0:00:05]} 70. Ke4 {[%emt 0:00:02]} Kxa5 {[%emt 0:00:04]} 71. Kf5 {[%emt 0:00:02]} Kb5 {[%emt 0:00:09]} 72. Kxf6 {[%emt 0:00:03]} a5 {[%emt 0:00:03]} 73. Kxg5 {[%emt 0:00:04]} a4 {[%emt 0:00:03]} 74. Kh6 {[%emt 0:00:17]} a3 {[%emt 0:00:12]} 75. g5 {[%emt 0:00:01]} a2 {[%emt 0:00:07]} 76. g6 {[%emt 0:00:03]} a1=Q {[%emt 0:00:12]} 77. g7 {[%emt 0:00:09]} Qa2 {[%emt 0:00:33]} 78. Kh7 {[%emt 0:00:01]} Qf7 {[%emt 0:00:10]} 79. Kh8 {[%emt 0:00:01]} Qh5+ {[%emt 0:00:07]} 80. Kg8 {[%emt 0:00:09]} Kc5 {[%emt 0:00:15]} 81. Kf8 {[%emt 0:00:04]} Qf5+ {[%emt 0:00:18]} 82. Ke7 {[%emt 0:00:14]} Qg6 {[%emt 0:00:05]} 83. Kf8 {[%emt 0:00:04]} Qf6+ {[%emt 0:00:05]} 84. Kg8 {[%emt 0:00:01]} Kd6 {[%emt 0:00:47]} 85. Kh7 {[%emt 0:00:05]} Qh4+ {[%emt 0:00:06]} 86. Kg6 {[%emt 0:00:01]} Qc4 {[%emt 0:00:14]} 87. Kh7 {[%emt 0:00:02]} Qf7 {[%emt 0:00:08]} 88. Kh8 {[%emt 0:00:02]} Qh5+ {[%emt 0:00:06]} 89. Kg8 {[%emt 0:00:01]} Ke5 0-1